fUSD/lending_fUSD_20240213
["ID","MTS","AMOUNT","RATE_DAILY","PERIOD"]
[313952979,1707855033330,-453.93107993,0.00022614,2]
[313952980,1707855033339,-453.93107993,0.00022672,2]
[313952981,1707855033349,-200.0,0.00022674,2]
[313952982,1707855033359,-800.0,0.00022674,2]
[313952983,1707855033369,-200.0,0.00022674,2]
[313952984,1707855033378,-500.0,0.00022674,2]
[313952985,1707855033387,-467.92171068,0.00022685,2]
[313952986,1707855033396,-54359.03167444,0.00022699,2]
[313952987,1707855033417,-956.9078761,0.00022699,2]
[313952988,1707855033429,-4684.06044946,0.00022699,2]
[313952989,1707855033439,-1000.0,0.000227,2]
[313952990,1707855033448,-1000.0,0.000227,2]
[313952991,1707855033458,-453.93107993,0.00022729,2]
[313952992,1707855033468,-347.23,0.00022732,2]
[313952993,1707855033478,-150.0,0.00022747,2]
[313952994,1707855033487,-616.96477619,0.0002277,2]
[313952995,1707855033496,-150.0,0.0002278,2]
[313952996,1707855033506,-453.93107993,0.00022786,2]
[313952997,1707855033516,-201.86226227,0.0002279,2]
[313952998,1707855033526,-242.01217576,0.00022797,2]
[313952999,1707855033535,-1223.79754409,0.00022797,2]
[313953000,1707855033545,-302.67179114,0.00022797,2]
[313953001,1707855033555,-1377.92965017,0.00022797,2]
[313953002,1707855033565,-3692.92124406,0.00022797,4]
[313953003,1707855033574,-302.02240745,0.00022797,2]
[313953004,1707855033583,-1685.0963,0.00022797,2]
[313953005,1707855033592,-375.7357949,0.00022798,2]
[313953006,1707855033601,-2874.85928017,0.00022798,2]
[313953007,1707855033610,-6710.7022,0.00022799,2]
[313953008,1707855033619,-9130.7555,0.00022799,2]
[313953009,1707855033628,-321.6338,0.00022799,2]
[313953010,1707855033638,-1000.0,0.00022799,2]
[313953011,1707855033647,-4922.656,0.00022799,2]
[313953012,1707855033656,-35158.54867099,0.00022799,2]
[313953013,1707855033679,-601.45000001,0.00022799,2]
[313953014,1707855033700,-343.15,0.00022799,2]
[313953015,1707855033711,-558.659929,0.00022799,2]
[313953016,1707855033720,-792.8992,0.00022799,2]
[313953017,1707855033731,-220.19602871,0.00022799,2]
[313953018,1707855033740,-1213.21513929,0.00022799,2]
[313953019,1707855033749,-170.80404416,0.000228,2]
[313953020,1707855033758,-11656.64746045,0.000228,2]
[313953027,1707855040775,-304.74417498,0.00022799,2]
[313953029,1707855040785,-1415.88812855,0.000228,2]
[313953032,1707855040797,-5406.00496557,0.000228,2]
[313953034,1707855040807,-659.57138499,0.000228,2]
[313953036,1707855040816,-182.12583826,0.000228,2]
[313953038,1707855040826,-712.49,0.0002281,2]
[313953040,1707855040835,-200.0,0.00022815,2]
[313953042,1707855040844,-304.74417496,0.00022824,2]
[313953044,1707855040853,-1500.0,0.00022829,2]
[313953046,1707855040863,-150.0,0.0002283,2]
[313953048,1707855040872,-150.0,0.00022838,2]
[313953050,1707855040881,-453.93107993,0.00022843,2]
[313953052,1707855040890,-304.74417496,0.0002285,2]
[313953054,1707855040900,-150.0,0.00022851,2]
[313953055,1707855040909,-163.64,0.00022863,2]
[313953056,1707855040918,-304.74417496,0.00022875,2]
[313953057,1707855040927,-196.29826336,0.00022889,2]
[313953058,1707855040936,-1318.40482753,0.00022897,2]
[313953059,1707855040945,-10556.09033301,0.00022897,2]
[313953060,1707855040954,-475.81370008,0.00022897,2]
[313953061,1707855040963,-2671.23874225,0.00022897,2]
[313953062,1707855040973,-1712.94560503,0.00022897,2]
[313953063,1707855040982,-2158.44442105,0.00022897,2]
[313953064,1707855041163,-407.75428958,0.00022898,2]
[313953065,1707855041176,-311.25325278,0.00022898,2]
[313953066,1707855041185,-3645.7282088,0.00022898,2]
[313953069,1707855041196,-190.72315125,0.00022898,2]
[313953070,1707855041207,-201.15790191,0.00022898,2]
[313953072,1707855041217,-157.93207212,0.00022898,2]
[313953074,1707855041226,-2332.65275521,0.00022898,2]
[313953077,1707855041236,-3272.66824156,0.00022898,2]
[313953079,1707855041247,-717.39,0.00022899,2]
[313953080,1707855041257,-11371.83760033,0.00022899,2]
[313953083,1707855041270,-533.49381657,0.00022899,2]
[313953086,1707855041281,-42545.5532522,0.00022899,2]
[313953088,1707855041294,-3691.64847901,0.00022899,2]
[313953091,1707855041306,-692.79472096,0.00022899,2]
[313953095,1707855041338,-19139.32773137,0.00022899,2]
[313953097,1707855041349,-331.60371914,0.00022899,2]
[313953100,1707855041364,-6543.14688264,0.00022899,2]
[313953102,1707855041376,-4926.4698,0.00022899,2]
[313953105,1707855041391,-326.45,0.00022899,2]
[313953107,1707855041403,-481.70408771,0.00022899,2]
[313953110,1707855041414,-9488.89973459,0.00022899,2]
[313953112,1707855041429,-47388.99999999,0.00022899,2]
[313953115,1707855041441,-1631.5164132,0.00022899,2]
[313953117,1707855041453,-636.9005323,0.00022899,2]
[313953119,1707855041464,-745.55664796,0.00022899,2]
[313953121,1707855041476,-741.27723955,0.00022899,2]
[313953124,1707855041488,-420.8888349,0.00022899,2]
[313953126,1707855041499,-47481.67320901,0.00022899,2]
[313953128,1707855041511,-313.89851893,0.00022899,2]
[313953131,1707855041636,-406.46916604,0.00022899,2]
[313953133,1707855041648,-729.74969985,0.00022899,2]
[313953135,1707855041659,-2883.51546083,0.00022899,2]
[313953139,1707855041689,-384.24477354,0.00022899,2]
[313953327,1707855043368,-302342.66891319,0.00022899,2]
[313953328,1707855043378,-500.0,0.00022899,2]
[313953329,1707855043387,-500.0,0.00022899,2]
[313953330,1707855043397,-500.0,0.00022899,2]
[313953331,1707855043406,-500.0,0.00022899,2]
[313953332,1707855043415,-500.0,0.00022899,2]
[313953333,1707855043424,-500.0,0.00022899,2]
[313953334,1707855043434,-500.0,0.00022899,2]
[313953335,1707855043443,-500.0,0.00022899,2]
[313953336,1707855043453,-406.10491181,0.00022899,2]
[313953337,1707855043462,-500.0,0.00022899,2]
[313953338,1707855043471,-622.81907284,0.00022899,2]
[313953339,1707855043480,-500.0,0.00022899,2]
[313953340,1707855043489,-500.0,0.00022899,2]
[313953341,1707855043499,-500.0,0.00022899,2]
[313953342,1707855043508,-500.0,0.00022899,2]
[313953343,1707855043517,-500.0,0.00022899,2]
[313953344,1707855043527,-500.0,0.00022899,2]
[313953345,1707855043536,-500.0,0.00022899,2]
[313953346,1707855043545,-733.49,0.000229,2]
[313953347,1707855043555,-729.29,0.000229,2]
[313953348,1707855043564,-733.21,0.000229,2]
[313953349,1707855043574,-57976.28203442,0.000229,2]
[313953350,1707855043585,-3118.34218516,0.000229,2]
[313953351,1707855043609,-183905.37578042,0.000229,2]
[313953352,1707855043618,-5386.787,0.000229,2]
[313953353,1707855043627,-100000.0,0.000229,2]
[313953354,1707855043637,-453.93107993,0.000229,2]
[313953355,1707855043647,-5000.0,0.000229,2]
[313953356,1707855043656,-822.36920773,0.000229,2]
[313953357,1707855043665,-202.39215233,0.000229,2]
[313953358,1707855043675,-659.57138499,0.000229,2]
[313953359,1707855043685,-1132.07264584,0.000229,2]
[313953360,1707855043694,-3427.38211832,0.000229,2]
[313953361,1707855043703,-523.79767194,0.000229,2]
[313953362,1707855043712,-166.64983942,0.000229,2]
[313953363,1707855043721,-304.74417496,0.000229,2]
[313953364,1707855043730,-150.0,0.00022906,2]
[313953365,1707855043739,-150.0,0.00022932,2]
[313953366,1707855043749,-150.0,0.00022949,2]
[313953367,1707855043759,-150.0,0.00022967,2]
[313953368,1707855043769,-150.0,0.00022979,2]
[313953369,1707855043778,-196.29826336,0.0002299,2]
[313953370,1707855043787,-200001.52838439,0.00022995,2]
[313953371,1707855043796,-1956.89178955,0.00022996,2]
[313953372,1707855043805,-489.12944998,0.00022996,2]
[313953373,1707855043815,-1808.2328264,0.00022996,2]
[313953374,1707855043824,-161.32750904,0.00022996,2]
[313953375,1707855043833,-312.69645562,0.00022996,2]
[313953376,1707855043841,-295.02829947,0.00022996,2]
[313953377,1707855043851,-2787.55898513,0.00022997,2]
[313953378,1707855043859,-155.0,0.00022997,2]
[313953379,1707855043868,-278.73949976,0.00022998,2]
[313953380,1707855043878,-155.90333735,0.00022998,2]
[313953381,1707855043887,-226.64347679,0.00022998,2]
[313953382,1707855043896,-220.83467046,0.00022998,2]
[313953383,1707855043905,-503.96228903,0.00022998,2]
[313953384,1707855043914,-251.07314405,0.00022998,2]
[313953385,1707855043923,-24468.63803636,0.00022998,2]
[313953386,1707855043932,-5540.63883607,0.00022998,2]
[313953387,1707855043941,-216.22962887,0.00022998,2]
[313953388,1707855043950,-157.58692672,0.00022998,2]
[313953389,1707855043959,-155.0,0.00022998,2]
[313953390,1707855043968,-157.33424671,0.00022998,2]
[313953391,1707855043977,-155.90086713,0.00022998,2]
[313953392,1707855043986,-487.1124032,0.00022998,2]
[313953393,1707855043995,-158.07637874,0.00022998,2]
[313953394,1707855044004,-204.53560583,0.00022998,2]
[313953395,1707855044013,-365.78086249,0.00022998,2]
[313953396,1707855044022,-202.76663822,0.00022998,2]
[313953397,1707855044033,-234.32954791,0.00022998,2]
[313953398,1707855044042,-946.08105737,0.00022998,2]
[313953399,1707855044052,-6010.64210971,0.00022998,2]
[313953400,1707855044062,-196.38680745,0.00022998,2]
[313953401,1707855044109,-157.27933344,0.00022998,2]
[313953402,1707855044118,-164.14030581,0.00022998,2]
[313953403,1707855044127,-155.31134145,0.00022998,2]
[313953404,1707855044136,-244.82534313,0.00022998,2]
[313953405,1707855044145,-4363.66268829,0.00022998,2]
[313953406,1707855044158,-410.33180337,0.00022998,2]
[313953407,1707855044174,-714.56661676,0.00022998,2]
[313953408,1707855044183,-242.6822578,0.00022998,2]
[313953409,1707855044203,-102.4017422,0.00022998,2]
[313953410,1707855044212,-1825.25494948,0.00022998,2]
[313953411,1707855044223,-761.32049541,0.00022998,2]
[313953412,1707855044234,-1734.57222704,0.00022998,2]
[313953413,1707855044247,-7234.20994032,0.00022998,2]
[313953416,1707855046348,-7553.40759815,0.00022998,2]
[313953417,1707855046357,-772.5503743,0.00022998,2]
[313953418,1707855046366,-2553.7528263,0.00022998,2]
[313953419,1707855046375,-150.01,0.00022999,2]
[313953420,1707855046385,-3314.82130757,0.00022999,2]
[313953421,1707855046394,-73071.31271823,0.00022999,2]
[313953423,1707855091925,416.43865149,0.00022999,10]
[313953427,1707855146983,316.28,0.00021544,2]
[313953428,1707855154963,544.53,0.00019998,2]
[313953429,1707855220443,200.0,0.00021732,2]
[313953430,1707855222371,895.41,0.00021732,2]
[313953431,1707855261866,150.0,0.00021676,2]
[313953432,1707855301631,495.9,0.00021651,2]
[313953433,1707855360659,-250.0,0.00021918,2]
[313953434,1707855360683,-727.33,0.00021938,2]
[313953435,1707855360704,-732.32,0.00021944,2]
[313953436,1707855360725,-290.35,0.00021954,2]
[313953437,1707855361268,-422.88,0.00021954,2]
[313953438,1707855361289,-722.13,0.00021966,2]
[313953439,1707855361310,-711.51,0.00021983,2]
[313953440,1707855361333,-143.48,0.00022,2]
[313953441,1707855361743,-33.79,0.00022,2]
[313953442,1707855380496,-659.71,0.00022002,2]
[313953443,1707855386354,-51.03,0.00022002,2]
[313953444,1707855386375,-735.72,0.00022009,2]
[313953445,1707855398761,735.85,0.00022008,2]
[313953446,1707855402445,-250.0,0.00022029,2]
[313953447,1707855410607,-193.61,0.00022031,2]
[313953448,1707855571447,150.0,0.00021617,2]
[313953449,1707855571468,37.32,0.00021617,2]
[313953452,1707855593526,150.0,0.00021617,2]
[313953453,1707855593548,24.27,0.00021617,2]
[313953454,1707855602284,150.0,0.00019717,2]
[313953455,1707855602310,150.0,0.00019717,2]
[313953456,1707855602333,150.0,0.00019717,2]
[313953457,1707855602356,75.71,0.00019717,2]
[313953458,1707855634844,150.0,0.00021596,2]
[313953459,1707855634867,150.0,0.00021596,2]
[313953460,1707855634887,150.0,0.00021596,2]
[313953461,1707855634907,149.28,0.00021596,2]
[313953462,1707855728707,250.0,0.00021575,2]
[313953463,1707855735007,746.17,0.00021575,2]
[313953464,1707855840069,603.28,0.00021556,2]
[313953465,1707855844413,206.0,0.00021453,2]
[313953466,1707855857577,150.08,0.00021737,2]
[313953467,1707855936968,7173.14390489,0.000219,2]
[313953468,1707855975685,-500.0,0.00037626,120]
[313953469,1707855975707,-107518.35749526,0.00037626,32]
[313953470,1707855975730,-1912.57502568,0.00037626,120]
[313953471,1707855975752,-900.0,0.00037626,120]
[313953472,1707855975775,-1774.545963,0.00037626,30]
[313953473,1707855975797,-238.079729,0.00037626,30]
[313953474,1707855975820,-166.18210956,0.00037626,60]
[313953475,1707855975845,-1987.913013,0.00037626,30]
[313953476,1707855975870,-200.0,0.00037626,30]
[313953477,1707855975892,-230.859284,0.00037626,30]
[313953478,1707855993896,-211.0,0.0003456,39]
[313953479,1707855993934,-316.00043237,0.00037,120]
[313953480,1707855993979,-10141.41,0.00038356,60]
[313953481,1707855994009,-29768.82318826,0.00039,40]
[313953482,1707855994036,-4309.28362942,0.000398,60]
[313953483,1707855994059,-4369.43,0.0003998,120]
[313953484,1707855994082,-1238.2194712,0.0004,90]
[313953485,1707855994106,-1000.0,0.0004,120]
[313953486,1707855994131,-300.0,0.0004,41]
[313953487,1707855994157,-1000.0,0.00041,120]
[313953488,1707855994182,-212.5660509,0.00041,34]
[313953489,1707855994205,-211.0,0.00041,120]
[313953490,1707855994228,-151.0,0.00041,120]
[313953491,1707855994251,-1250.0,0.00041095,42]
[313953492,1707855994274,-1500.0,0.00041095,52]
[313953493,1707855994301,-1750.0,0.00041095,62]
[313953494,1707855994324,-2000.0,0.00041095,72]
[313953495,1707855994345,-2250.0,0.00041095,82]
[313953496,1707855994366,-536.57755681,0.00041095,92]
[313953497,1707855994389,-500.0,0.0004135,60]
[313953498,1707855994412,-2000.0,0.00041397,120]
[313953499,1707855994438,-669.83328697,0.00041397,120]
[313953500,1707855994462,-500.0,0.00041643,60]
[313953501,1707855994485,-500.0,0.00041643,60]
[313953502,1707855994509,-500.0,0.00041643,60]
[313953503,1707855994533,-500.0,0.00041643,60]
[313953504,1707855994570,-593.62517211,0.00041643,60]
[313953505,1707855994596,-4299.0,0.000417,87]
[313953506,1707855994625,-2660.0,0.00041979,36]
[313953507,1707855994649,-222.23,0.0004198,61]
[313953508,1707855994673,-150.5,0.0004199,61]
[313953509,1707855994696,-297.07,0.0004199,60]
[313953510,1707855994720,-834131.33389831,0.00042,90]
[313953511,1707855994744,-84913.10942469,0.00042,120]
[313953512,1707855994768,-840.85262393,0.00042,120]
[313953513,1707855994795,-300.0,0.00042,43]
[313953514,1707855994819,-552.55624497,0.00042,120]
[313953515,1707855994843,-136108.17280402,0.00042,120]
[313953516,1707855994867,-1000.0,0.00042,120]
[313953517,1707855994892,-24000.0,0.00042,120]
[313953518,1707855994919,-3000.0,0.00042,49]
[313953519,1707855994944,-200.0,0.00042,49]
[313953520,1707855994968,-8067.32,0.00042,120]
[313953521,1707855994991,-24000.0,0.00042,120]
[313953522,1707855995015,-3000.0,0.0004201,49]
[313953523,1707855995041,-5475.95891,0.0004202,49]
[313953524,1707855995067,-24000.0,0.0004206,120]
[313953525,1707855995092,-15661.11,0.0004206,120]
[313953526,1707855995117,-24000.0,0.0004212,120]
[313953527,1707855995146,-24000.0,0.0004218,120]
[313953528,1707855995173,-24000.0,0.0004224,120]
[313953529,1707855995199,-24000.0,0.000423,120]
[313953530,1707855995477,-24000.0,0.0004236,120]
[313953531,1707855995503,-24000.0,0.0004242,120]
[313953532,1707855995528,-24000.0,0.0004248,120]
[313953533,1707855995552,-2008.26449313,0.000425,60]
[313953534,1707855995577,-24000.0,0.0004254,120]
[313953535,1707855995601,-24000.0,0.000426,120]
[313953536,1707855995636,-300.0,0.000428,52]
[313953537,1707855995662,-1000.0,0.000428,47]
[313953538,1707855995686,-342.12385572,0.000428,120]
[313953539,1707855995710,-2130.73742068,0.000428,40]
[313953540,1707855995734,-3337.89534432,0.000428,120]
[313953541,1707855995764,-100000.0,0.00043,33]
[313953542,1707855995790,-50000.0,0.00043,120]
[313953543,1707855995814,-511.09833916,0.00043,120]
[313953544,1707855995838,-639.17087675,0.00043,120]
[313953545,1707855995863,-300.0,0.00043,44]
[313953546,1707855995888,-2000.0,0.00043,120]
[313953547,1707855995912,-2000.0,0.00043,120]
[313953548,1707855995936,-180.0,0.00043,120]
[313953549,1707855995961,-1000000.0,0.00043,90]
[313953550,1707855995985,-140806.30025779,0.00043,120]
[313953551,1707855996009,-1000.0,0.00043,120]
[313953552,1707855996033,-20000.0,0.00043,35]
[313953553,1707855996056,-1113.75,0.00043,120]
[313953554,1707855996098,-6621.69046611,0.00043,120]
[313953555,1707855996138,-150.0,0.00043044,120]
[313953556,1707855996166,-2500.0,0.00043434,45]
[313953557,1707855996190,-150.0,0.0004347,120]
[313953558,1707855996213,-49314.36906954,0.0004347,120]
[313953559,1707855996236,-25000.0,0.00043481,60]
[313953560,1707855996260,-25000.0,0.00043481,60]
[313953561,1707855996283,-25000.0,0.00043481,60]
[313953562,1707855996306,-25000.0,0.00043481,60]
[313953563,1707855996329,-14517.11477374,0.00043481,60]
[313953564,1707855996352,-158.0,0.00043496,90]
[313953565,1707855996378,-1000.0,0.00043499,120]
[313953566,1707855996402,-500.0,0.000437,120]
[313953567,1707855996426,-2660.589755,0.00043747,39]
[313953568,1707855996452,-206.0,0.0004377,35]
[313953569,1707855996477,-418.0235,0.0004378,120]
[313953570,1707855996502,-352.84576994,0.0004378,120]
[313953571,1707855996525,-613.9980333,0.00043789,120]
[313953572,1707855996549,-1000.0,0.00043799,120]
[313953573,1707855996572,-300.0,0.000438,56]
[313953574,1707855996594,-1000.0,0.000438,49]
[313953575,1707855996620,-16000.0,0.00043835,60]
[313953576,1707855996642,-3000.0,0.00043835,120]
[313953577,1707856005667,151.0,0.00037064,120]
[313953578,1707856009695,1238.2194712,0.0004,90]
[313953579,1707856011673,-500.0,0.00028767,30]
[313953580,1707856011709,-518.51653226,0.00028767,30]
[313953581,1707856011761,-500.0,0.00029041,30]
[313953582,1707856011900,-560.28957705,0.000314,30]
[313953583,1707856011966,-221.5444787,0.00035,30]
[313953584,1707856012002,-200.0,0.000375,30]
[313953585,1707856012031,-200.0,0.000377,30]
[313953586,1707856012053,-7255.04951941,0.000378,30]
[313953587,1707856012077,-151.0,0.00037821,30]
[313953588,1707856012099,-200.0,0.000379,30]
[313953589,1707856012121,-200.0,0.000381,30]
[313953590,1707856012145,-200.0,0.000383,30]
[313953591,1707856012169,-224.17607266,0.00038356,30]
[313953592,1707856012202,-4000.0,0.00038356,30]
[313953593,1707856012226,-200.0,0.000385,30]
[313953594,1707856012249,-200.0,0.000387,30]
[313953595,1707856012272,-200.0,0.000389,30]
[313953596,1707856012295,-200.0,0.000391,30]
[313953597,1707856012318,-200.0,0.000393,30]
[313953598,1707856012341,-200.0,0.000395,30]
[313953599,1707856012363,-200.0,0.000397,30]
[313953600,1707856012389,-200.0,0.000399,30]
[313953601,1707856012415,-100000.0,0.0004,30]
[313953602,1707856012439,-326.6273938,0.0004,30]
[313953603,1707856012462,-1441.20959872,0.0004,30]
[313953604,1707856012484,-590.03510889,0.0004,30]
[313953605,1707856012506,-211.14099376,0.0004,30]
[313953606,1707856012530,-509.71678174,0.0004,30]
[313953607,1707856012553,-150.0,0.0004,30]
[313953608,1707856012575,-150.0,0.0004,30]
[313953609,1707856012597,-343.20089359,0.00040085,30]
[313953610,1707856012620,-154.08080951,0.00040086,30]
[313953611,1707856012642,-200.0,0.000401,30]
[313953612,1707856012859,-252.82950332,0.00040106,30]
[313953613,1707856012882,-154.36120313,0.00040165,30]
[313953614,1707856012905,-343.20089359,0.00040198,30]
[313953615,1707856012927,-343.20089359,0.00040199,30]
[313953616,1707856012949,-154.36120313,0.00040282,30]
[313953617,1707856012971,-200.0,0.000403,30]
[313953618,1707856012993,-343.20089359,0.00040311,30]
[313953619,1707856013021,-230.95398111,0.00040341,30]
[313953620,1707856013042,-155.00792312,0.00040363,30]
[313953621,1707856013064,-160.68846626,0.00040371,30]
[313953622,1707856013086,-152.48330725,0.00040423,30]
[313953623,1707856013108,-252.82950332,0.00040444,30]
[313953624,1707856013130,-151.85929632,0.00040463,30]
[313953625,1707856013154,-269.23029251,0.000405,30]
[313953626,1707856013178,-168.85258363,0.00040525,30]
[313953627,1707856013199,-230.95398111,0.0004055,30]
[313953628,1707856013221,-343.20089359,0.00040564,30]
[313953629,1707856013243,-1000.0,0.000406,30]
[313953630,1707856013269,-343.20089359,0.00040621,30]
[313953631,1707856013292,-230.95398111,0.00040719,30]
[313953632,1707856013314,-156.17954357,0.00040723,30]
[313953633,1707856013337,-150.0,0.000408,30]
[313953634,1707856013360,-153.16897291,0.00040828,30]
[313953635,1707856013383,-230.95398111,0.00040878,30]
[313953636,1707856013405,-343.20089359,0.00040882,30]
[313953637,1707856013427,-1000.0,0.000409,30]
[313953638,1707856013452,-252.82950332,0.0004096,30]
[313953639,1707856013474,-156.17954357,0.0004098,30]
[313953640,1707856013497,-230.95398111,0.00040996,30]
[313953641,1707856013520,-100000.0,0.00041,31]
[313953642,1707856013543,-2268.62945513,0.00041,30]
[313953643,1707856013565,-150.0,0.00041014,30]
[313953644,1707856013589,-163.81632969,0.00041027,30]
[313953645,1707856013612,-343.20089359,0.00041079,30]
[313953646,1707856013637,-252.82950332,0.00041089,30]
[313953647,1707856013668,-500.0,0.00041095,30]
[313953648,1707856013691,-639.88,0.00041095,30]
[313953649,1707856013712,-500.0,0.00041095,30]
[313953650,1707856013735,-500.0,0.00041095,30]
[313953651,1707856013757,-500.0,0.00041095,30]
[313953652,1707856013778,-500.0,0.00041095,30]
[313953653,1707856013799,-500.0,0.00041095,30]
[313953654,1707856013821,-500.0,0.00041095,30]
[313953655,1707856013843,-500.0,0.00041095,30]
[313953656,1707856013865,-500.0,0.00041095,30]
[313953657,1707856013887,-500.0,0.00041095,30]
[313953658,1707856013909,-372.54087159,0.00041095,30]
[313953659,1707856013931,-1000.0,0.00041095,32]
[313953660,1707856013953,-156.67920932,0.00041105,30]
[313953661,1707856013974,-1000.0,0.000412,30]
[313953662,1707856013996,-156.67920932,0.00041202,30]
[313953663,1707856014019,-155.98197656,0.00041207,30]
[313953664,1707856014043,-278.850544,0.000413,31]
[313953665,1707856014065,-252.82950332,0.00041314,30]
[313953666,1707856014086,-155.98197656,0.00041421,30]
[313953667,1707856014109,-252.82950332,0.00041425,30]
[313953668,1707856014132,-159.19558988,0.00041439,30]
[313953669,1707856014155,-163.8163297,0.00041492,30]
[313953670,1707856014175,-259.0,0.000415,30]
[313953671,1707856014196,-9064.7180322,0.000415,30]
[313953672,1707856014217,-1000.0,0.000415,30]
[313953673,1707856014241,-155.98197656,0.00041518,30]
[313953674,1707856014263,-343.20089359,0.00041518,30]
[313953675,1707856014284,-155.98197656,0.00041574,30]
[313953676,1707856014307,-230.95398111,0.0004162,30]
[313953677,1707856014329,-150.0,0.00041643,30]
[313953678,1707856014351,-150.0,0.00041643,30]
[313953679,1707856014373,-159.19558988,0.00041667,30]
[313953680,1707856014396,-156.17954357,0.00041712,30]
[313953681,1707856014419,-206.0,0.00041741,32]
[313953682,1707856014443,-252.82950332,0.00041751,30]
[313953683,1707856014464,-153.16897293,0.00041783,30]
[313953684,1707856014487,-558.97515037,0.000418,30]
[313953685,1707856014508,-1000.0,0.000418,30]
[313953686,1707856014534,-252.82950332,0.00041821,30]
[313953687,1707856014556,-252.82950332,0.00041832,30]
[313953688,1707856014579,-155.98197656,0.00041859,30]
[313953689,1707856014603,-154.08080951,0.0004186,30]
[313953690,1707856014627,-154.93146774,0.00041871,30]
[313953691,1707856014651,-252.82950332,0.00041878,30]
[313953692,1707856014674,-14709.05943805,0.000419,30]
[313953693,1707856014696,-90000.0,0.000419,30]
[313953694,1707856014718,-230.95398111,0.000419,30]
[313953695,1707856014740,-252.82950332,0.00041904,30]
[313953696,1707856014761,-166.18210956,0.00041922,30]
[313953697,1707856014783,-230.95398111,0.00041928,30]
[313953698,1707856014805,-156.67920932,0.00041954,30]
[313953699,1707856014827,-1000.0,0.00041995,30]
[313953700,1707856014850,-100000.0,0.00042,32]
[313953701,1707856014875,-559.0,0.00042,30]
[313953702,1707856014897,-10000.0,0.00042,30]
[313953703,1707856014920,-998.0,0.00042,30]
[313953704,1707856014942,-20074.0,0.00042,30]
[313953705,1707856014964,-70601.3966701,0.00042,30]
[313953706,1707856014987,-150.0,0.00042028,30]
[313953707,1707856015011,-156.17954357,0.00042037,30]
[313953708,1707856015032,-1000.0,0.000421,30]
[313953709,1707856015055,-230.95398111,0.00042153,30]
[313953710,1707856015077,-100097.03950475,0.000422,30]
[313953711,1707856015099,-175.26482668,0.00042292,30]
[313953712,1707856015121,-252.82950332,0.00042308,30]
[313953713,1707856015143,-151.3387461,0.00042344,30]
[313953714,1707856015164,-154.36120313,0.0004235,30]
[313953715,1707856015333,-159.19558992,0.00042381,30]
[313953716,1707856015356,-177.26210056,0.00042436,30]
[313953717,1707856015378,-151.3387461,0.00042496,30]
[313953718,1707856015402,-1000.0,0.000425,30]
[313953719,1707856015424,-343.20089359,0.00042551,30]
[313953720,1707856015448,-7000.0,0.0004256,30]
[313953721,1707856015471,-155.98197659,0.00042588,30]
[313953722,1707856015494,-156.954154,0.0004262,30]
[313953723,1707856015523,-343.20089359,0.0004265,30]
[313953724,1707856015545,-156.17954357,0.00042657,30]
[313953725,1707856015567,-343.20089359,0.00042769,30]
[313953726,1707856015589,-156.17954357,0.00042786,30]
[313953727,1707856015612,-156.17954357,0.00042793,30]
[313953728,1707856015636,-154.36120318,0.0004282,30]
[313953729,1707856015658,-151.3387461,0.00042832,30]
[313953730,1707856015681,-252.82950332,0.00042882,30]
[313953731,1707856015703,-5574.60365667,0.0004289,30]
[313953732,1707856015725,-2972.27625433,0.000429,30]
[313953733,1707856015748,-70532.0,0.000429,30]
[313953734,1707856015771,-594.68098956,0.000429,30]
[313953735,1707856015793,-594.68098955,0.000429,30]
[313953736,1707856015815,-594.68098955,0.000429,30]